Cogmind - Beta 13 --- EXPLORER MODE // 2024.06.12 @ 18:54:53 Player: Xifax Result: Self-destructed Performance ------------- Evolutions (1) 500 Regions Visited (2) 400 Robots Destroyed (17) 85 Value Destroyed (330) 330 Prototype IDs (0) 0 Alien Tech Used (0) 0 Bonus (0) 0 TOTAL SCORE: 1315 Bonus ------- None Cogmind --------- Core Integrity 276/400 Matter 24/350 Energy 250/250 System Corruption 0% Temperature Cool (0) Movement Walking (260) Ox2 Location -9/Materials Parts ------- > --- POWER (2) -------- Ion Engine > --- PROPULSION (2) --- Aluminum Leg > --- UTILITY (4) ------ Medium Storage Unit Medium Storage Unit Small Matter Pod > --- WEAPON (2) ------- (None) > --- INVENTORY (10) --- Ion Engine Light Treads Light Treads Structural Scanner Targeting Computer Power Shielding Shield Generator Light Assault Rifle Light Assault Rifle Peak State ------------ > --- POWER ------------ Ion Engine Backup Power I > --- PROPULSION ------- Aluminum Leg Aluminum Leg > --- UTILITY ---------- Medium Storage Unit Medium Storage Unit Small Matter Pod Light Armor Plating > --- WEAPON ----------- Grenade Launcher Grenade Launcher > --- INVENTORY -------- Ion Engine Light Treads Light Treads Structural Scanner Targeting Computer Power Shielding Shield Generator EM Pulse Gun Light Assault Rifle Light Assault Rifle [Rating: 11] Favorites ----------- Power Ion Engine Engine Ion Engine Propulsion Aluminum Leg Leg Aluminum Leg Utility Medium Storage Unit Storage Medium Storage Unit Protection Light Armor Plating Weapon Grenade Launcher Energy Gun EM Pulse Gun Ballistic Gun Light Assault Rifle Launcher Grenade Launcher Build | -11 -10 -9 ------- Run | Yrd Mat Mat Slots Evolved 3 | . 1 2 Power 1 | . . 1 Propulsion . | . . . Utility 2 | . 1 1 Weapon . | . . . Parts Attached 5 | . 3 2 Power . | . . . Engine . | . . . Core . | . . . Reactor . | . . . Propulsion . | . . . Treads . | . . . Leg . | . . . Wheel . | . . . Hover . | . . . Flight . | . . . Utility 2 | . 1 1 Device . | . . . Storage 2 | . 1 1 Processor . | . . . Hackware . | . . . Protection . | . . . Artifact . | . . . Weapon 3 | . 2 1 Energy Gun 1 | . . 1 Energy Cannon . | . . . Ballistic Gun . | . . . Ballistic Cannon . | . . . Launcher 2 | . 2 . Special Weapon . | . . . Impact Weapon . | . . . Slashing Weapon . | . . . Piercing Weapon . | . . . Special Melee Weapon . | . . . Unidentified Prototypes . | . . . Parts Lost 6 | . . 6 Power 1 | . . 1 Propulsion 1 | . . 1 Utility 1 | . . 1 Weapon 3 | . . 3 Highest Loss Streak 6 | . . 6 To Critical Strikes . | . . . Average Slot Usage (%) 92 | . 95 86 Engine 14 | . 12 17 Leg 22 | . 25 17 Storage 23 | . 20 28 Protection 9 | . 12 6 Energy Gun 1 | . 1 2 Launcher 19 | . 22 14 Naked Turns . | . . . Heaviest Build 36 | 21 34 36 Greatest Support 20 | 20 20 20 Greatest Overweight (x) 3 | 1 1 3 Average Overweight (x) 1 | 1 1 1 Largest Inventory Capacity 10 | 10 10 10 Average Capacity 10 | 10 10 10 Most Carried 10 | 7 10 10 Average Carried 9 | 7 8 9 Final Capacity 10 | 10 10 10 Final Carried 10 | 7 10 9 Class Distribution -------------------- 100% | Hacker-Mutant Dominant Class ---------------- Hacker-Mutant | -10/Materials Hacker-Mutant | -9/Materials Resources | -11 -10 -9 ----------- Run | Yrd Mat Mat Matter Collected 344 | 200 28 116 Remotely . | . . . Salvage Created 176 | . 124 52 Parts 27 | . 5 22 Haulers Intercepted 1 | . 1 . Recyclers Shooed 1 | . . 1 Parts Field Recycled . | . . . Retrieved Matter . | . . . Parts Self-Destructed . | . . . Prevented . | . . . Kills | -11 -10 -9 ------- Run | Yrd Mat Mat Combat Hostiles Destroyed 9 | . 4 5 AOE 9 | . 4 5 Classes Destroyed 6 | . 3 3 Builder 5 | . . 5 Hauler 1 | . 1 . Watcher 2 | . 1 1 Swarmer 3 | . . 3 Grunt 5 | . 4 1 Sentry 1 | . . 1 Best Kill Streak 8 | . 3 8 Combat Bots Only 3 | . 2 3 Max Kills in Single Turn 2 | . 2 2 Gunslinging . | . . . Exploded 1 | . 1 1 Melee . | . . . Uniques/NPCs Destroyed . | . . . Combat | -11 -10 -9 -------- Run | Yrd Mat Mat Hostile Shots Fired 133 | . 7 126 Missed 38 | . 1 37 Damage Taken 759 | . 47 712 Core 130 | . 6 124 Absorbed by Shields . | . . . Ignored by Resistances 484 | . 30 454 Core Remaining (%) 98 | 100 97 . Volleys Fired 25 | . 6 19 Largest 2 | . 2 2 Hottest 60 | . 60 60 Shots Fired 45 | . 12 33 Gun 5 | . . 5 Cannon . | . . . Launcher 40 | . 12 28 Special . | . . . Kinetic . | . . . Thermal . | . . . Explosive 40 | . 12 28 Electromagnetic 5 | . . 5 Robot Hit Streak 13 | . 4 13 Robot Miss Streak 1 | . 1 1 Penetration Max . | . . . Secondary Targets . | . . . Shots Hit Robots 19 | . 5 14 Core Hits 38 | . 11 27 Critical Kills . | . . . Critical Parts Destroyed . | . . . Critical Strikes . | . . . Melee Attacks . | . . . Impact . | . . . Slashing . | . . . Piercing . | . . . Sneak Attacks . | . . . Combat Hostiles . | . . . Follow-up Attacks . | . . . Damage Inflicted 1482 | . 414 1068 Guns 68 | . . 68 Cannons . | . . . Explosions 1414 | . 414 1000 Melee . | . . . Ramming . | . . . Kinetic . | . . . Thermal . | . . . Explosive 1414 | . 414 1000 Electromagnetic 68 | . . 68 Impact . | . . . Slashing . | . . . Piercing . | . . . Highest Corruption . | . . . Average Corruption . | . . . Corruption Purged . | . . . Corruption Blocked . | . . . Overload Shots . | . . . Overflow Damage 1 | . . 1 Projectiles . | . . . Explosions 1 | . . 1 Melee . | . . . Knockbacks . | . . . Impact . | . . . Kinetic . | . . . Secondary . | . . . Self-Inflicted Damage 44 | . . 44 Shots 5 | . . 5 Rammed . | . . . Targets Rammed . | . . . Kicked . | . . . Crushed . | . . . Highest Temperature 83 | . 45 83 Average Temperature 22 | . 18 24 Received Heat Transfer 534 | . 45 489 Siege Activations . | . . . Robots Corrupted . | . . . Combat Hostiles . | . . . Parts Fried . | . . . Impact Corruptions . | . . . Robots Melted . | . . . Combat Hostiles . | . . . Parts Melted . | . . . Heat Transferred . | . . . Parts Sabotaged . | . . . Parts Stolen . | . . . Parts Stripped . | . . . Power Chain Reactions . | . . . Alert | -11 -10 -9 ------- Run | Yrd Mat Mat Peak Influence 296 | . 170 296 Initial 51 | . . 51 Average 119 | . 87 179 Maximum Alert Level 1 | . . 1 Low Security (%) 82 | 100 100 54 Level 1 17 | . . 45 Level 2 . | . . . Level 3 . | . . . Level 4 . | . . . Level 5 . | . . . High Security . | . . . Max Security . | . . . Squads Dispatched 1 | . . 1 Investigation . | . . . Extermination . | . . . Reinforcement 1 | . . 1 Assault . | . . . Garrison . | . . . Intercept . | . . . Searches Triggered . | . . . Construction Impeded . | . . . Haulers Reinforced . | . . . Active Scanning Responses . | . . . Cargo Convoy Interrupts . | . . . Stealth | -11 -10 -9 --------- Run | Yrd Mat Mat Distress Signals 2 | . . 2 Communications Jammed . | . . . Distress Signals . | . . . Times Spotted 21 | . 6 15 Peak Tracking Total 8 | . 2 8 Tactical Retreats . | . . . Traps | -11 -10 -9 ------- Run | Yrd Mat Mat Traps Triggered . | . . . Indirectly . | . . . Trap Hack Attempts . | . . . Triggered . | . . . Disarmed . | . . . Reprogrammed . | . . . Reused . | . . . Traps Extracted . | . . . Installed . | . . . Triggered . | . . . Machines | -11 -10 -9 ---------- Run | Yrd Mat Mat Machines Disabled . | . . . Max in Single Turn . | . . . Machines Repaired . | . . . Machines Dismantled . | . . . Machines Sabotaged . | . . . Overloaded Fab Kills . | . . . Hacking | -11 -10 -9 --------- Run | Yrd Mat Mat Machines Accessed 3 | . 2 1 Terminals 1 | . 1 . Fabricators . | . . . Repair Stations 1 | . . 1 Recycling Units 1 | . 1 . Scanalyzers . | . . . Garrison Access . | . . . Total Hacks 9 | . 7 2 Successful 6 | . 5 1 Failed 3 | . 2 1 Catastrophic . | . . . Database Lockouts . | . . . Manual 1 | . 1 . Terminals 5 | . 5 . Fabricators . | . . . Repair Stations 2 | . . 2 Recycling Units 2 | . 2 . Scanalyzers . | . . . Garrison Access . | . . . Terminal Hacks 3 | . 3 . Alert Level 1 | . 1 . Locate Traps 1 | . 1 . Hauler Manifests 1 | . 1 . Fabricator Hacks . | . . . Repair Station Hacks 1 | . . 1 Refit 1 | . . 1 Recycling Unit Hacks 2 | . 2 . Report Inventory 1 | . 1 . Retrieve Components 1 | . 1 . Scanalyzer . | . . . Garrison Access Hacks . | . . . Unauthorized Hacks . | . . . Terminals . | . . . Fabricators . | . . . Repair Stations . | . . . Recycling Units . | . . . Scanalyzers . | . . . Garrison Access . | . . . Data Cores Recovered . | . . . Used . | . . . Hacking Detections 1 | . 1 . Full Trace Events . | . . . Feedback Events . | . . . Feedback Blocked . | . . . Robot Schematics Acquired . | . . . Robots Built . | . . . Authchips . | . . . Time . | . . . Total Robot Build Rating . | . . . Part Schematics Acquired . | . . . Parts Built . | . . . Authchips . | . . . Time . | . . . Total Part Build Rating . | . . . Parts Repaired . | . . . Time . | . . . Parts Recycled . | . . . Recycled Matter . | . . . Retrieved Matter . | . . . Retrieved Components 2 | . 2 . Parts Scanalyzed . | . . . Part Schematics Acquired . | . . . Parts Damaged . | . . . Bothacking | -11 -10 -9 ------------ Run | Yrd Mat Mat Used RIF Installer . | . . . Robots Hacked . | . . . Non-combat . | . . . Combat . | . . . Robot Hacks Applied . | . . . Relay Couplers Released . | . . . Fabnet Peak Effective % . | . . . Robots Rewired . | . . . Allies Hacked . | . . . Hacks Repelled . | . . . Allies | -11 -10 -9 -------- Run | Yrd Mat Mat Total Allies . | . . . Largest Group . | . . . Highest-Rated Group . | . . . Highest-Rated Ally . | . . . Total Orders . | . . . Ally Attacks . | . . . Total Damage . | . . . Kills . | . . . Allies Corrupted . | . . . Allies Melted . | . . . Intel | -11 -10 -9 ------- Run | Yrd Mat Mat Robot Analysis Total . | . . . Derelict Logs Recovered . | . . . Drone Launches . | . . . Drone Recoveries . | . . . Exploration | -11 -10 -9 ------------- Run | Yrd Mat Mat Turns Passed 541 | 21 311 209 Spaces Moved 238 | 12 151 75 Core . | . . . Treads . | . . . Legs 238 | 12 151 75 Wheels . | . . . Hover . | . . . Flight . | . . . Fastest Speed 190 | 190 190 190 Average Speed 194 | 190 190 204 Slowest Speed 330 | 190 190 330 Overloaded Moves . | . . . Propulsion Burnouts . | . . . Robots Hopped . | . . . Cave-ins Triggered . | . . . Exploration Rate (%) 15 | 3 29 15 Regions Visited 2 Branch Regions . Pre-discovered Areas . | . . . Known Exits Taken 2 | 1 1 . Unknown Exits Taken . | . . . Scrap Searched . | . . . Spaces Dug . | . . . Terrain Destroyed 123 | . 49 74 Melee . | . . . Projectile . | . . . AOE 123 | . 49 74 Terrain Rammed . | . . . Walls Destroyed . | . . . Machines Disabled . | . . . Actions | -11 -10 -9 --------- Run | Yrd Mat Mat Total 271 | 11 163 97 Wait . | . . . Move 236 | 11 150 75 Hop . | . . . Pick Up 5 | . 4 1 Fast Attach . | . . . Attach 3 | . 1 2 Detach . | . . . Swap 2 | . 2 . Drop . | . . . Fire 25 | . 6 19 Melee . | . . . Ram . | . . . Kick . | . . . Crush . | . . . Escape Stasis . | . . . Rewire . | . . . Trap . | . . . Miscellaneous . | . . . Route ------- -11/Scrapyard -10/Materials -9/Materials History --------- Turn | Location | Event 1 | -11/Scrapyard | Identified exit to Materials 1 | -11/Scrapyard | Discovered exit to Materials (range 1) 22 | -11/Scrapyard | Entered Materials 22 | -10/Materials | Evolved 1 slot: Utility x1 94 | -10/Materials | Identified exit to Materials 94 | -10/Materials | Discovered exit to Materials (range 14) 316 | -10/Materials | Build established: Hacker-Mutant 333 | -10/Materials | Entered another Materials area 333 | -9/Materials | Evolved 2 slots: Power x1, Utility x1 542 | -9/Materials | Self-destructed Last Messages --------------- U-05 Engineer destroyed. K-01 Serf collects debris. R-06 Scavenger collects Wheel. Aluminum Leg destroyed. K-01 Serf collects debris. The unstable cave ceiling collapses. K-01 Serf collects debris. K-01 Serf destroyed. Grenade Launcher destroyed. R-06 Scavenger collects Welding Torch. M-13 Machinist repairs G-34 Mercenary. R-06 Scavenger collects Wheel. Backup Power I destroyed. M-13 Machinist repairs Ion Engine. Critical hit (Burn: +37). R-06 Scavenger collects Wheel. M-13 Machinist repairs Y-45 Defender. EM Pulse Gun destroyed. R-06 Scavenger collects Terrain Scanner. M-13 Machinist repairs A-02 Transporter. Map ----- +----------------------------------------------------+ | ???????????????????????????????????# ## #??????# | | ???????????????????????????????????# ## #?T ? | | ???????????????????????????????????# ## #? ** | | ???????????????????????????????????# ## # * | | ???????????????????????????????????# ## # | | ????????????????????????????########### # | | ????????????????????????????#! # """ | | ????????????????????????????# """ | | ????????????????????????????# """ | | ????????????????????????????# % | | ????????????????????????????# # % ### | | ????????????????????????????# # # ##? | | ????????????????????????????# # ## | | ????????????????????????????# # # # | | ????????????????????????????##### # # | | ????????????????????????????????### # # | | ?????????????????????????????????### ## # | | ???????????????????????????????????#### # # | | ???????????????????#####??????????????# | | ???????????????##### ############## # | | ??????????????? % ####### | | ??????????????? % | | ??????????????? | | ???????????????????# ### ######## | | ??????????????????####/#####g #??????# #### | | ??????????????????# ms @ gg #??????#######???? | | ??????????????????# """ ##+#?????????????????? | | ??????????????????# """ !! #?????????????????????? | | ??????????????????# """ !! #?????????????????????? | | ??????????????????# ! #?????????????????????? | | ??????????????????# """ #?????????????????????? | | ??????????????????# "R #?????????????????????? | | ??????????????????# """Y ] #?????????????????????? | | ??????????????????? #?????????????????????? | | ???????????????????## ######?????????????????????? | | ????????????????????##???????????????????????????? | | ?????????????????????????????????????????????????? | | ?????????????????????????????????????????????????? | | ?????????????????????????????????????????????????? | | ?????????????????????????????????????????????????? | | ?????????????????????????????????????????????????? | | ?????????????????????????????????????????????????? | | ?????????????????????????????????????????????????? | | ?????????????????????????????????????????????????? | | ?????????????????????????????????????????????????? | | ?????????????????????????????????????????????????? | | ?????????????????????????????????????????????????? | | ?????????????????????????????????????????????????? | | ?????????????????????????????????????????????????? | | ?????????????????????????????????????????????????? | +----------------------------------------------------+ Best States ------------- Heat Dissipation 28 Energy Generation 14 Energy Capacity 250 Matter Stores 300 Matter Capacity 350 Sight Range 16 Terrain Scan Density 10 Armor Coverage 150 Resistance: KI 35 Resistance: TH 35 Resistance: EX 35 Resistance: EM 35 Resistance: I 35 Resistance: S 35 Resistance: P 35 Evasion (%) 40 Offensive Hacking 20 Item Schematics ----------------- None Robot Schematics ------------------ None Fabricated ------------ Nothing Alien Tech Used ----------------- None Achievements -------------- None Challenges ------------ None Game ------ Seed RestorationMiningFilter Manual? 0 Play Time 00:15:03 Cumulative 4.5 hours Start 2024.06.12 @ 18:43:43 End 2024.06.12 @ 18:54:53 Sessions 1 Manual Loads 0 Difficulty Explorer Special Mode None Game No. 6 Rogue 0 Adventurer 0 Explorer 6 Win Type - Total 0 Types 0/0/0/0/0/0/0/0/0 Lore% 5 Gallery% 14 Achievement% 38 Wizard Run 0 Options --------- Layout 1 ASCII 0 Keyboard 0 Movement Mouse Keybinds 0 Fullscreen 1 Font 48/Cog++ Map View 50x35 Zoom Use 0% Tactical HUD 0 Map Filters NONE Filters NONE Steam 1 RUN: 3d003df8-e31a-4d4c-94be-e7aae8fb806c